fUST/lending_fUST_20250620
["ID","MTS","AMOUNT","RATE_DAILY","PERIOD"]
[366750314,1750432232725,-386.36067961,0.0001941,2]
[366750316,1750432232737,-113.63932039,0.0001941,2]
[366750318,1750432232747,-500.0,0.0001941,2]
[366750320,1750432232756,-427.36067961,0.0001941,2]
[366750323,1750432232781,-72.63932039,0.0001941,2]
[366750325,1750432232790,-500.0,0.0001941,2]
[366750327,1750432232800,-500.0,0.0001941,2]
[366750329,1750432232810,-500.0,0.0001941,2]
[366750331,1750432232820,-500.0,0.0001941,2]
[366750333,1750432232829,-472.33050793,0.0001941,2]
[366750337,1750432232858,-27.66949207,0.0001941,2]
[366750339,1750432232868,-318.11998627,0.0001941,2]
[366750341,1750432232878,-500.0,0.0001941,2]
[366750343,1750432232888,-500.0,0.0001941,2]
[366750344,1750432232898,-500.0,0.0001941,2]
[366750345,1750432232908,-500.0,0.0001941,2]
[366750346,1750432232918,-500.0,0.0001941,2]
[366750347,1750432232927,-500.0,0.0001941,2]
[366750348,1750432232938,-500.0,0.0001941,2]
[366750349,1750432232948,-500.0,0.0001941,2]
[366750350,1750432232958,-500.0,0.0001941,2]
[366750351,1750432232968,-500.0,0.0001941,2]
[366750352,1750432232978,-497.79259946,0.0001941,2]
[366750353,1750432232989,-500.0,0.0001941,2]
[366750354,1750432232999,-500.0,0.0001941,2]
[366750355,1750432233009,-561.84731842,0.0001941,2]
[366750356,1750432233019,-500.0,0.0001941,2]
[366750357,1750432233029,-500.0,0.0001941,2]
[366750358,1750432233039,-500.0,0.0001941,2]
[366750359,1750432233048,-500.0,0.0001941,2]
[366750360,1750432233059,-500.0,0.0001941,2]
[366750361,1750432233069,-500.0,0.0001941,2]
[366750362,1750432233080,-500.0,0.0001941,2]
[366750363,1750432233091,-347.22896629,0.0001941,2]
[366750364,1750432233101,-500.0,0.0001941,2]
[366750365,1750432233112,-500.0,0.0001941,2]
[366750366,1750432233123,-500.0,0.0001941,2]
[366750367,1750432233134,-570.39040745,0.0001941,2]
[366750368,1750432233144,-500.0,0.0001941,2]
[366750369,1750432233155,-500.0,0.0001941,2]
[366750370,1750432233165,-500.0,0.0001941,2]
[366750371,1750432233175,-500.0,0.0001941,2]
[366750373,1750432233185,-500.0,0.0001941,2]
[366750374,1750432233197,-500.0,0.0001941,2]
[366750376,1750432233207,-500.0,0.0001941,2]
[366750378,1750432233219,-500.0,0.0001941,2]
[366750380,1750432233229,-500.0,0.0001941,2]
[366750382,1750432233240,-500.0,0.0001941,2]
[366750384,1750432233251,-500.0,0.0001941,2]
[366750386,1750432233261,-500.0,0.0001941,2]
[366750388,1750432233271,-500.0,0.0001941,2]
[366750390,1750432233281,-500.0,0.0001941,2]
[366750392,1750432233292,-500.0,0.0001941,2]
[366750394,1750432233302,-500.0,0.0001941,2]
[366750396,1750432233312,-500.0,0.0001941,2]
[366750398,1750432233323,-460.0,0.0001941,2]
[366750400,1750432233333,-500.0,0.0001941,2]
[366750402,1750432233343,-500.0,0.0001941,2]
[366750404,1750432233353,-500.0,0.0001941,2]
[366750406,1750432233363,-500.0,0.0001941,2]
[366750408,1750432233373,-500.0,0.0001941,2]
[366750410,1750432233384,-500.0,0.0001941,2]
[366750412,1750432233394,-500.0,0.0001941,2]
[366750414,1750432233404,-500.0,0.0001941,2]
[366750416,1750432233415,-500.0,0.0001941,2]
[366750418,1750432233426,-500.0,0.0001941,2]
[366750420,1750432233435,-500.0,0.0001941,2]
[366750421,1750432233445,-500.0,0.0001941,2]
[366750423,1750432233455,-500.0,0.0001941,2]
[366750426,1750432233466,-634.26335301,0.0001941,2]
[366750427,1750432233478,-500.0,0.0001941,2]
[366750430,1750432233488,-460.0,0.0001941,2]
[366750431,1750432233498,-460.0,0.0001941,2]
[366750433,1750432233508,-335.42142322,0.0001941,2]
[366750435,1750432233518,-460.0,0.0001941,2]
[366750437,1750432233528,-500.0,0.0001941,2]
[366750439,1750432233537,-500.0,0.0001941,2]
[366750441,1750432233547,-270.75101448,0.0001941,2]
[366750443,1750432233557,-359.53154021,0.0001941,2]
[366750445,1750432233568,-1392.48,0.0001941,2]
[366750447,1750432233578,-460.0,0.0001941,2]
[366750449,1750432233590,-223.88215436,0.0001941,2]
[366750451,1750432233599,-460.0,0.0001941,2]
[366750453,1750432233610,-2501.22,0.0001941,2]
[366750455,1750432233620,-460.0,0.0001941,2]
[366750457,1750432233630,-460.0,0.0001941,2]
[366750459,1750432233641,-460.0,0.0001941,2]
[366750461,1750432233651,-460.0,0.0001941,2]
[366750463,1750432233661,-466.75127127,0.0001941,2]
[366750465,1750432233671,-460.0,0.0001941,2]
[366750467,1750432233681,-460.0,0.0001941,2]
[366750469,1750432233691,-463.23755312,0.0001941,2]
[366750472,1750432233702,-2688.98,0.0001941,2]
[366750473,1750432233712,-2915.14,0.0001941,2]
[366750475,1750432233725,-190.58850659,0.0001941,2]
[366750478,1750432233735,-852.57151105,0.00019411,2]
[366750480,1750432233745,-300.0,0.00019411,2]
[366750482,1750432233755,-460.0,0.00019412,2]
[366750484,1750432233765,-440.0,0.00019412,2]
[366750486,1750432233775,-460.0,0.00019412,2]
[366750488,1750432233785,-400.0,0.00019412,2]
[366750490,1750432233794,-460.0,0.00019412,2]
[366750491,1750432233804,-460.0,0.00019412,2]
[366750493,1750432233814,-460.0,0.00019412,2]
[366750496,1750432233824,-460.0,0.00019412,2]
[366750497,1750432233833,-460.0,0.00019412,2]
[366750500,1750432233843,-460.0,0.00019412,2]
[366750501,1750432233852,-460.0,0.00019412,2]
[366750504,1750432233863,-353.58806912,0.00019412,2]
[366750506,1750432233873,-594.64,0.00019412,2]
[366750524,1750432234052,-407.59024471,0.00019412,2]
[366750526,1750432234062,-460.0,0.00019412,2]
[366750528,1750432234073,-460.0,0.00019412,2]
[366750530,1750432234084,-381.94707183,0.00019412,2]
[366750536,1750432234152,-619.60475346,0.00019409,2]
[366750538,1750432234162,-78.05292817,0.00019412,2]
[366750540,1750432234173,-460.0,0.00019412,2]
[366750542,1750432234184,-460.0,0.00019412,2]
[366750544,1750432234199,-460.0,0.00019412,2]
[366750546,1750432234209,-2121.84231337,0.00019412,2]
[366750562,1750432234381,-500.0,0.00019409,2]
[366750564,1750432234391,-231.20768663,0.00019412,2]
[366750566,1750432234403,-3032.46,0.00019412,2]
[366750568,1750432234413,-460.0,0.00019412,2]
[366750570,1750432234424,-1183.35,0.00019412,2]
[366750572,1750432234435,-460.0,0.00019412,2]
[366750574,1750432234445,-468.2169293,0.00019412,2]
[366750576,1750432234455,-360.54490297,0.00019412,2]
[366750702,1750432238272,-500.0,0.00019409,2]
[366750704,1750432238282,-500.0,0.00019409,2]
[366750706,1750432238292,-500.0,0.00019409,2]
[366750708,1750432238302,-500.0,0.00019409,2]
[366750710,1750432238311,-500.0,0.00019409,2]
[366750712,1750432238321,-460.0,0.00019409,2]
[366750714,1750432238331,-500.0,0.00019409,2]
[366750717,1750432238341,-500.0,0.00019409,2]
[366750720,1750432238351,-460.0,0.00019409,2]
[366750723,1750432238361,-404.96027266,0.00019409,2]
[366750726,1750432238371,-460.0,0.0001941,2]
[366750728,1750432238381,-597.64,0.0001941,2]
[366750730,1750432238390,-918.51509703,0.00019412,2]
[366750731,1750432238400,-460.0,0.00019412,2]
[366750733,1750432238410,-460.0,0.00019412,2]
[366750735,1750432238420,-460.0,0.00019412,2]
[366750737,1750432238430,-2862.97,0.00019412,2]
[366750739,1750432238439,-460.0,0.00019412,2]
[366750741,1750432238450,-1285.77,0.00019412,2]
[366750743,1750432238459,-460.0,0.00019412,2]
[366750745,1750432238469,-460.0,0.00019412,2]
[366750747,1750432238482,-460.0,0.00019412,2]
[366750749,1750432238492,-460.0,0.00019412,2]
[366750751,1750432238502,-460.0,0.00019412,2]
[366750753,1750432238512,-460.0,0.00019412,2]
[366750755,1750432238522,-460.0,0.00019412,2]
[366750757,1750432238531,-460.0,0.00019412,2]
[366750759,1750432238542,-684.83,0.00019412,2]
[366750761,1750432238552,-460.0,0.00019412,2]
[366750763,1750432238562,-460.0,0.00019412,2]
[366750765,1750432238571,-460.0,0.00019412,2]
[366750767,1750432238581,-500.0,0.00019412,2]
[366750769,1750432238591,-500.0,0.00019412,2]
[366750771,1750432238601,-343.4976075,0.00019412,2]
[366750772,1750432238610,-460.0,0.00019412,2]
[366750773,1750432238620,-460.0,0.00019412,2]
[366750774,1750432238629,-460.0,0.00019412,2]
[366750775,1750432238639,-460.0,0.00019412,2]
[366750776,1750432238649,-460.0,0.00019412,2]
[366750777,1750432238658,-527.50701064,0.00019412,2]
[366750778,1750432238668,-460.0,0.00019412,2]
[366750779,1750432238678,-460.0,0.00019412,2]
[366750780,1750432238687,-460.0,0.00019412,2]
[366750781,1750432238697,-843.2,0.00019412,2]
[366750782,1750432238706,-500.0,0.00019412,2]
[366750783,1750432238716,-503.32344317,0.00019412,2]
[366750784,1750432238728,-500.0,0.00019412,2]
[366750785,1750432238738,-500.0,0.00019412,2]
[366750786,1750432238748,-500.0,0.00019412,2]
[366750787,1750432238759,-500.0,0.00019412,2]
[366750788,1750432238769,-460.0,0.00019412,2]
[366750789,1750432238779,-500.0,0.00019412,2]
[366750790,1750432238789,-8.68696746,0.00019413,2]
[366750791,1750432238799,-460.0,0.00019413,2]
[366750792,1750432238809,-460.0,0.00019413,2]
[366750793,1750432238819,-369.99821626,0.00019413,2]
[366750794,1750432238830,-460.0,0.00019413,2]
[366750795,1750432238840,-460.0,0.00019413,2]
[366750796,1750432238850,-460.0,0.00019413,2]
[366750798,1750432238860,-345.63488597,0.00019413,2]
[366750799,1750432238869,-255.40336218,0.00019413,2]
[366750800,1750432238879,-460.0,0.00019413,2]
[366750802,1750432238890,-460.0,0.00019413,2]
[366750804,1750432238902,-185.78455715,0.00019413,2]
[366750806,1750432238911,-460.0,0.00019413,2]
[366750808,1750432238921,-552.74603,0.00019413,2]
[366750810,1750432238931,-460.0,0.00019413,2]
[366750812,1750432238941,-360.0,0.00019413,2]
[366750814,1750432238951,-460.0,0.00019413,2]
[366750816,1750432238961,-400.0,0.00019413,2]
[366750818,1750432238974,-460.0,0.00019413,2]
[366750820,1750432238984,-460.0,0.00019413,2]
[366750822,1750432238994,-562.41363913,0.00019413,2]
[366750824,1750432239005,-500.0,0.00019413,2]
[366750826,1750432239015,-500.0,0.00019413,2]
[366750828,1750432239024,-460.0,0.00019413,2]
[366750830,1750432239033,-460.0,0.00019413,2]
[366750832,1750432239043,-460.0,0.00019413,2]
[366750834,1750432239052,-460.0,0.00019413,2]
[366750836,1750432239062,-286.25679009,0.00019413,2]
[366750837,1750432239072,-359.0,0.00019413,2]
[366750838,1750432239082,-535.67,0.00019413,2]
[366750839,1750432239092,-405.0306154,0.00019413,2]
[366750840,1750432239102,-460.0,0.00019413,2]
[366750841,1750432239112,-460.0,0.00019413,2]
[366750842,1750432239122,-439.08863961,0.00019413,2]
[366750843,1750432239132,-460.0,0.00019413,2]
[366750844,1750432239141,-380.89633906,0.00019413,2]
[366750845,1750432239152,-460.0,0.00019413,2]
[366750846,1750432239161,-460.0,0.00019413,2]
[366750847,1750432239171,-460.0,0.00019413,2]
[366750848,1750432239180,-460.0,0.00019413,2]
[366750849,1750432239194,-460.0,0.00019413,2]
[366750850,1750432239204,-460.0,0.00019413,2]
[366750851,1750432239214,-394.8692918,0.00019413,2]
[366750852,1750432239224,-460.0,0.00019413,2]
[366750853,1750432239234,-460.0,0.00019413,2]
[366750854,1750432239287,-460.0,0.00019413,2]
[366750855,1750432239297,-460.0,0.00019413,2]
[366750856,1750432239308,-410.0,0.00019413,2]
[366750857,1750432239318,-416.92230706,0.00019413,2]
[366750858,1750432239327,-460.0,0.00019413,2]
[366750859,1750432239338,-460.0,0.00019413,2]
[366750860,1750432239348,-460.0,0.00019413,2]
[366750861,1750432239358,-460.0,0.00019413,2]
[366750862,1750432239368,-460.0,0.00019413,2]
[366750863,1750432239379,-460.0,0.00019413,2]
[366750864,1750432239388,-452.96218221,0.00019413,2]
[366750865,1750432239399,-430.0,0.00019413,2]
[366750866,1750432239409,-460.0,0.00019413,2]
[366750867,1750432239419,-430.0,0.00019413,2]
[366750868,1750432239432,-414.60750469,0.00019413,2]
[366750869,1750432239441,-460.0,0.00019413,2]
[366750870,1750432239451,-319.83038736,0.00019413,2]
[366750871,1750432239461,-634.28,0.00019413,2]
[366750872,1750432239472,-460.0,0.00019413,2]
[366750873,1750432239484,-460.0,0.00019413,2]
[366750874,1750432239494,-460.0,0.00019413,2]
[366750875,1750432239504,-460.0,0.00019413,2]
[366750876,1750432239513,-460.0,0.00019413,2]
[366750877,1750432239523,-460.0,0.00019413,2]
[366750879,1750432239532,-460.0,0.00019413,2]
[366750881,1750432239542,-452.77194789,0.00019413,2]
[366750883,1750432239552,-460.0,0.00019413,2]
[366750885,1750432239562,-460.0,0.00019413,2]
[366750887,1750432239572,-460.0,0.00019413,2]
[366750889,1750432239581,-460.0,0.00019413,2]
[366750891,1750432239591,-460.0,0.00019413,2]
[366750892,1750432239601,-460.0,0.00019413,2]
[366750894,1750432239612,-460.0,0.00019413,2]
[366750896,1750432239621,-460.0,0.00019413,2]
[366750898,1750432239631,-460.0,0.00019413,2]
[366750900,1750432239641,-420.0,0.00019413,2]
[366750902,1750432239651,-460.0,0.00019413,2]
[366750905,1750432239661,-460.0,0.00019413,2]
[366750907,1750432239671,-460.0,0.00019413,2]
[366750909,1750432239680,-460.0,0.00019413,2]
[366750911,1750432239691,-460.0,0.00019413,2]
[366750913,1750432239701,-460.0,0.00019413,2]
[366750915,1750432239711,-460.0,0.00019413,2]
[366750917,1750432239721,-460.0,0.00019413,2]
[366750918,1750432239734,-460.0,0.00019413,2]
[366750921,1750432239744,-460.0,0.00019413,2]
[366750922,1750432239754,-460.0,0.00019413,2]
[366750924,1750432239764,-460.0,0.00019413,2]
[366750925,1750432239773,-460.0,0.00019413,2]
[366750927,1750432239783,-460.0,0.00019413,2]
[366750929,1750432239794,-460.0,0.00019413,2]
[366750930,1750432239803,-203.08908523,0.00019413,2]
[366750932,1750432239814,-460.0,0.00019413,2]
[366750933,1750432239823,-409.34357492,0.00019413,2]
[366750935,1750432239832,-460.0,0.00019413,2]
[366750936,1750432239842,-290.8707611,0.00019413,2]
[366750937,1750432239852,-251.44236666,0.00019413,2]
[366750938,1750432239862,-432.6731681,0.00019413,2]
[366750939,1750432239872,-460.0,0.00019413,2]
[366750940,1750432239882,-460.0,0.00019413,2]
[366750941,1750432239892,-460.0,0.00019413,2]
[366750942,1750432239901,-444.01645113,0.00019413,2]
[366750943,1750432239912,-460.0,0.00019413,2]
[366750944,1750432239922,-460.0,0.00019413,2]
[366750945,1750432239932,-460.0,0.00019413,2]
[366750946,1750432239941,-460.0,0.00019413,2]
[366750947,1750432239951,-460.0,0.00019413,2]
[366750948,1750432239961,-460.0,0.00019413,2]
[366750949,1750432239971,-460.0,0.00019413,2]
[366750950,1750432239982,-460.0,0.00019413,2]
[366750951,1750432239992,-460.0,0.00019413,2]
[366750952,1750432240002,-460.0,0.00019413,2]
[366750954,1750432240011,-516.12,0.00019413,2]
[366750956,1750432240021,-211.91931107,0.00019413,2]
[366750958,1750432240030,-326.33240122,0.00019413,2]
[366750960,1750432240040,-460.0,0.00019413,2]
[366750962,1750432240049,-460.0,0.00019413,2]
[366750964,1750432240059,-460.0,0.00019413,2]
[366750966,1750432240069,-460.0,0.00019413,2]
[366750968,1750432240078,-460.0,0.00019413,2]
[366750969,1750432240088,-460.0,0.00019413,2]
[366750971,1750432240097,-460.0,0.00019413,2]
[366750973,1750432240106,-460.0,0.00019413,2]
[366750975,1750432240115,-460.0,0.00019413,2]
[366750977,1750432240125,-460.0,0.00019413,2]
[366750979,1750432240135,-460.0,0.00019413,2]
[366750981,1750432240145,-460.0,0.00019413,2]
[366750983,1750432240153,-376.49519616,0.00019413,2]
[366750985,1750432240164,-460.0,0.00019413,2]
[366750987,1750432240173,-460.0,0.00019413,2]
[366750989,1750432240182,-460.0,0.00019413,2]
[366750991,1750432240193,-460.0,0.00019413,2]
[366750992,1750432240204,-460.0,0.00019413,2]
[366750994,1750432240214,-483.43,0.00019413,2]
[366750996,1750432240225,-460.0,0.00019413,2]
[366750998,1750432240235,-460.0,0.00019413,2]
[366751000,1750432240244,-460.0,0.00019413,2]
[366751001,1750432240254,-461.96937602,0.00019413,2]
[366751003,1750432240264,-460.0,0.00019413,2]
[366751005,1750432240275,-432.95503368,0.00019413,2]
[366751007,1750432240285,-460.0,0.00019413,2]
[366751009,1750432240295,-461.57844679,0.00019413,2]
[366751011,1750432240304,-512.01797144,0.00019413,2]
[366751013,1750432240313,-460.0,0.00019413,2]
[366751015,1750432240322,-460.0,0.00019413,2]
[366751017,1750432240332,-460.0,0.00019413,2]
[366751019,1750432240341,-231.45709632,0.00019413,2]
[366751021,1750432240350,-992.35,0.00019413,2]
[366751023,1750432240359,-460.0,0.00019413,2]
[366751025,1750432240368,-998.84,0.00019413,2]
[366751026,1750432240378,-460.0,0.00019413,2]
[366751028,1750432240388,-460.0,0.00019413,2]
[366751030,1750432240397,-399.68014378,0.00019413,2]
[366751032,1750432240406,-606.40846,0.00019413,2]
[366751034,1750432240417,-460.0,0.00019413,2]
[366751036,1750432240426,-460.0,0.00019413,2]
[366751038,1750432240436,-460.0,0.00019413,2]
[366751040,1750432240447,-433.45996284,0.00019413,2]
[366751042,1750432240457,-460.0,0.00019413,2]
[366751044,1750432240468,-460.0,0.00019413,2]
[366751046,1750432240480,-460.0,0.00019413,2]
[366751048,1750432240490,-607.07088979,0.00019413,2]
[366751050,1750432240500,-433.91801966,0.00019413,2]
[366751052,1750432240509,-460.0,0.00019413,2]
[366751054,1750432240519,-460.0,0.00019413,2]
[366751056,1750432240529,-460.0,0.00019413,2]
[366751058,1750432240538,-460.0,0.00019413,2]
[366751060,1750432240548,-460.0,0.00019413,2]
[366751062,1750432240557,-403.45563093,0.00019413,2]
[366751064,1750432240567,-460.0,0.00019413,2]
[366751066,1750432240577,-964.52,0.00019413,2]
[366751068,1750432240586,-460.0,0.00019413,2]
[366751070,1750432240596,-460.0,0.00019413,2]
[366751072,1750432240605,-472.88109535,0.00019413,2]
[366751074,1750432240615,-1349.1,0.00019413,2]
[366751076,1750432240624,-460.0,0.00019413,2]
[366751078,1750432240633,-460.0,0.00019413,2]
[366751080,1750432240643,-460.0,0.00019413,2]
[366751082,1750432240653,-460.0,0.00019413,2]
[366751084,1750432240663,-343.99610658,0.00019413,2]
[366751085,1750432240674,-460.0,0.00019413,2]
[366751087,1750432240684,-460.0,0.00019413,2]
[366751089,1750432240694,-460.0,0.00019413,2]
[366751091,1750432240704,-1288.1,0.00019413,2]
[366751092,1750432240714,-460.0,0.00019413,2]
[366751094,1750432240726,-460.0,0.00019413,2]
[366751095,1750432240735,-460.0,0.00019413,2]
[366751096,1750432240746,-725.25,0.00019413,2]
[366751097,1750432240757,-460.0,0.00019413,2]
[366751098,1750432240767,-460.0,0.00019413,2]
[366751099,1750432240777,-460.0,0.00019413,2]
[366751100,1750432240787,-460.0,0.00019413,2]
[366751101,1750432240798,-460.0,0.00019413,2]
[366751103,1750432240808,-460.0,0.00019413,2]
[366751105,1750432240817,-460.0,0.00019413,2]
[366751107,1750432240827,-460.0,0.00019413,2]
[366751109,1750432240836,-460.0,0.00019413,2]
[366751110,1750432240846,-460.0,0.00019413,2]
[366751112,1750432240855,-460.0,0.00019413,2]
[366751114,1750432240865,-460.0,0.00019413,2]
[366751116,1750432240876,-460.25622117,0.00019413,2]
[366751118,1750432240886,-460.0,0.00019413,2]
[366751120,1750432240895,-460.0,0.00019413,2]
[366751122,1750432240905,-460.0,0.00019413,2]
[366751124,1750432240915,-460.0,0.00019413,2]
[366751126,1750432240925,-1482.8,0.00019413,2]
[366751128,1750432240934,-375.39438031,0.00019413,2]
[366751130,1750432240943,-460.0,0.00019413,2]
[366751132,1750432240953,-460.0,0.00019413,2]
[366751134,1750432240963,-200.0,0.00019413,10]
[366751136,1750432240974,-200.0,0.00019413,10]
[366751138,1750432240984,-153.023992,0.00019413,10]
[366751140,1750432240993,-460.0,0.00019413,2]
[366751142,1750432241003,-3144.06,0.00019413,2]
[366751144,1750432241012,-460.0,0.00019413,2]
[366751146,1750432241022,-475.38,0.00019413,2]
[366751148,1750432241031,-1059.8,0.00019413,2]
[366751150,1750432241041,-434.86301594,0.00019413,2]
[366751152,1750432241051,-460.0,0.00019413,2]
[366751154,1750432241060,-432.49859622,0.00019413,2]
[366751156,1750432241069,-460.0,0.00019413,2]
[366751158,1750432241079,-460.0,0.00019413,2]
[366751160,1750432241088,-460.0,0.00019413,2]
[366751162,1750432241098,-460.0,0.00019413,2]
[366751164,1750432241108,-460.0,0.00019413,2]
[366751166,1750432241117,-799.81,0.00019413,2]
[366751168,1750432241127,-460.0,0.00019413,2]
[366751170,1750432241137,-460.0,0.00019413,2]
[366751171,1750432241146,-460.0,0.00019413,2]
[366751173,1750432241156,-3722.06,0.00019413,2]
[366751174,1750432241165,-460.0,0.00019413,2]
[366751176,1750432241175,-460.0,0.00019413,2]
[366751178,1750432241186,-460.0,0.00019413,2]
[366751180,1750432241198,-523.17,0.00019413,2]
[366751182,1750432241207,-164.96949099,0.00019413,2]
[366751184,1750432241217,-460.0,0.00019413,2]
[366751186,1750432241228,-460.0,0.00019413,2]
[366751188,1750432241239,-460.0,0.00019413,2]
[366751190,1750432241248,-460.0,0.00019413,2]
[366751192,1750432241258,-460.0,0.00019413,2]
[366751193,1750432241268,-420.07598315,0.00019413,2]
[366751196,1750432241279,-1082.03,0.00019413,2]
[366751197,1750432241289,-460.0,0.00019413,2]
[366751199,1750432241299,-460.0,0.00019413,2]
[366751201,1750432241309,-460.0,0.00019413,2]
[366751203,1750432241319,-500.0,0.00019413,2]
[366751205,1750432241329,-460.0,0.00019413,2]
[366751207,1750432241339,-460.0,0.00019413,2]
[366751209,1750432241350,-613.09,0.00019413,2]
[366751211,1750432241360,-460.0,0.00019413,2]
[366751213,1750432241370,-1191.47,0.00019413,2]
[366751215,1750432241380,-460.0,0.00019413,2]
[366751217,1750432241390,-466.78786794,0.00019413,2]
[366751219,1750432241400,-431.23977073,0.00019413,2]
[366751221,1750432241411,-460.0,0.00019413,2]
[366751223,1750432241421,-460.0,0.00019413,2]
[366751225,1750432241430,-460.0,0.00019413,2]
[366751227,1750432241441,-500.0,0.00019413,2]
[366751229,1750432241451,-460.0,0.00019413,2]
[366751231,1750432241462,-460.0,0.00019413,2]
[366751232,1750432241472,-1428.53,0.00019413,2]
[366751234,1750432241484,-24203.20432025,0.00019414,2]
[366751236,1750432241494,-1089.17544419,0.00019518,2]
[366751238,1750432241504,-395.99,0.00019657,3]
[366751240,1750432241514,-222.79,0.00019667,3]
[366751242,1750432241524,-445.59,0.00019676,3]
[366751244,1750432241535,-1042.57,0.00019677,3]
[366751246,1750432241544,-521.28,0.00019677,3]
[366751248,1750432241554,-260.64,0.00019677,3]
[366751250,1750432241565,-781.96,0.00019677,3]
[366751252,1750432241574,-430.0,0.00019683,2]
[366751254,1750432241586,-460.0,0.00019684,2]
[366751256,1750432241595,-460.0,0.00019684,2]
[366751258,1750432241605,-460.0,0.00019684,2]
[366751260,1750432241615,-460.0,0.00019684,2]
[366751262,1750432241625,-1392.48,0.00019684,2]
[366751264,1750432241635,-460.0,0.00019684,2]
[366751266,1750432241646,-2501.22,0.00019684,2]
[366751268,1750432241655,-460.0,0.00019684,2]
[366751270,1750432241665,-460.0,0.00019684,2]
[366751272,1750432241675,-283.93746776,0.00019684,2]
[366751274,1750432241685,-460.0,0.00019684,2]
[366751276,1750432241695,-460.0,0.00019684,2]
[366751277,1750432241705,-460.0,0.00019684,2]
[366751280,1750432241715,-2688.98,0.00019684,2]
[366751282,1750432241726,-2915.14,0.00019684,2]
[366751283,1750432241736,-460.0,0.00019684,2]
[366751286,1750432241746,-597.64,0.00019684,2]
[366751287,1750432241756,-460.0,0.00019686,2]
[366751289,1750432241766,-460.0,0.00019686,2]
[366751291,1750432241776,-483.72233479,0.00019686,2]
[366751293,1750432241786,-460.0,0.00019686,2]
[366751295,1750432241796,-460.0,0.00019686,2]
[366751297,1750432241806,-162.56347151,0.00019686,2]
[366751310,1750432241998,-297.43652849,0.00019686,2]
[366751311,1750432242009,-2353.05,0.00019686,2]
[366751312,1750432242020,-3032.46,0.00019686,2]
[366751313,1750432242032,-460.0,0.00019686,2]
[366751314,1750432242042,-1183.35,0.00019686,2]
[366751315,1750432242054,-460.0,0.00019686,2]
[366751316,1750432242064,-1279.06,0.00019686,2]
[366751317,1750432242075,-460.0,0.00019686,2]
[366751318,1750432242085,-460.0,0.00019686,2]
[366751319,1750432242095,-210.81100296,0.00019686,2]
[366751320,1750432242105,-2862.97,0.00019686,2]
[366751321,1750432242116,-460.0,0.00019686,2]
[366751322,1750432242126,-1285.77,0.00019686,2]
[366751323,1750432242136,-460.0,0.00019686,2]
[366751324,1750432242146,-460.0,0.00019686,2]
[366751325,1750432242156,-460.0,0.00019686,2]
[366751326,1750432242167,-219.52110847,0.00019686,2]
[366751327,1750432242177,-460.0,0.00019686,2]
[366751328,1750432242187,-440.0,0.00019686,2]
[366751329,1750432242201,-460.0,0.00019686,2]
[366751330,1750432242211,-684.83,0.00019686,2]